[Event "Titled Tuesday Blitz October 18 Late 2022"]
[White "Tan, Ralph"]
[Black "Domingo Nunez, Ruben"]
[WhiteFideId "30966590"]
[BlackFideId "22245570"]
[WhiteElo "2059"]
[BlackElo "2406"]
[Result "0-1"]
[Round "11"]
[TimeControl "180+1"]
[Date "2022.10.19"]
[WhiteClock "0:00:10"]
[BlackClock "0:00:15"]

1. Nf3 {[%clk 0:03:00]}  g6 {[%clk 0:02:53]} 2. g3 {[%clk 0:03:00]}  Bg7 {[%clk 0:02:53]} 3. d4 {[%clk 0:03:00]}  d6 {[%clk 0:02:54]} 4. Bg2 {[%clk 0:03:01]}  Nf6 {[%clk 0:02:54]} 5. O-O {[%clk 0:03:01]}  O-O {[%clk 0:02:55]} 6. c4 {[%clk 0:03:02]}  Nbd7 {[%clk 0:02:55]} 7. Nc3 {[%clk 0:03:02]}  c6 {[%clk 0:02:56]} 8. b3 {[%clk 0:03:02]}  c5 {[%clk 0:02:57]} 9. Bb2 {[%clk 0:03:02]}  Rb8 {[%clk 0:02:57]} 10. Rc1 {[%clk 0:02:59]}  a6 {[%clk 0:02:57]} 11. Re1 {[%clk 0:02:44]}  b5 {[%clk 0:02:58]} 12. cxb5 {[%clk 0:02:44]}  axb5 {[%clk 0:02:58]} 13. e4 {[%clk 0:02:44]}  b4 {[%clk 0:02:45]} 14. Na4 {[%clk 0:02:40]}  cxd4 {[%clk 0:02:44]} 15. Nxd4 {[%clk 0:02:39]}  Bb7 {[%clk 0:02:44]} 16. Nc6 {[%clk 0:02:34]}  Bxc6 {[%clk 0:02:44]} 17. Rxc6 {[%clk 0:02:34]}  Qa5 {[%clk 0:02:42]} 18. Qc2 {[%clk 0:02:28]}  h5 {[%clk 0:02:36]} 19. h3 {[%clk 0:02:28]}  h4 {[%clk 0:02:03]} 20. g4 {[%clk 0:02:25]}  Ne5 {[%clk 0:02:03]} 21. Bxe5 {[%clk 0:02:21]}  Qxe5 {[%clk 0:01:59]} 22. Qd2 {[%clk 0:02:18]}  g5 {[%clk 0:01:34]} 23. Qd3 {[%clk 0:02:06]}  Nd7 {[%clk 0:01:31]} 24. Rec1 {[%clk 0:02:01]}  Qf6 {[%clk 0:01:24]} 25. Qe2 {[%clk 0:01:54]}  Ne5 {[%clk 0:01:23]} 26. Rc7 {[%clk 0:01:54]}  Ng6 {[%clk 0:01:23]} 27. Rd7 {[%clk 0:01:34]}  Nf4 {[%clk 0:01:22]} 28. Qf3 {[%clk 0:01:32]}  Rfc8 {[%clk 0:01:02]} 29. Rcc7 {[%clk 0:01:26]}  Qa1+ {[%clk 0:01:01]} 30. Bf1 {[%clk 0:01:20]}  Rxc7 {[%clk 0:00:50]} 31. Rxc7 {[%clk 0:01:21]}  Bf6 {[%clk 0:00:51]} 32. Rc2 {[%clk 0:01:07]}  Qb1 {[%clk 0:00:38]} 33. Rd2 {[%clk 0:00:30]}  Rc8 {[%clk 0:00:33]} 34. Rd1 {[%clk 0:00:31]}  Qxa2 {[%clk 0:00:29]} 35. Nb6 {[%clk 0:00:28]}  Rc3 {[%clk 0:00:25]} 36. Qh1 {[%clk 0:00:21]}  Qxb3 {[%clk 0:00:17]} 37. Nd5 {[%clk 0:00:19]}  Qxd1 {[%clk 0:00:16]} 38. Nxf4 {[%clk 0:00:16]}  gxf4 {[%clk 0:00:15]} 39. Qg2 {[%clk 0:00:16]}  f3 {[%clk 0:00:15]} 40. Qh2 {[%clk 0:00:10]}  Qxf1+ {[%clk 0:00:15]} 41. Kxf1 {[%clk 0:00:10]}  Rc1# {[%clk 0:00:15]} 0-1


[Site "https://www.chess.com"]

[Event "Titled Tuesday Blitz October 18 Late 2022"]
[White "Thomforde-Toates, Noah"]
[Black "Bilan, Danila"]
[WhiteFideId "30951992"]
[BlackFideId "24161918"]
[WhiteElo "2677"]
[BlackElo "2203"]
[Result "1-0"]
[Round "11"]
[TimeControl "180+1"]
[Date "2022.10.18"]
[WhiteClock "0:00:43"]
[BlackClock "0:00:03"]

1. d4 {[%clk 0:03:00]}  d5 {[%clk 0:02:59]} 2. Nc3 {[%clk 0:03:01]}  Nf6 {[%clk 0:02:58]} 3. Bf4 {[%clk 0:02:58]}  Bf5 {[%clk 0:02:52]} 4. e3 {[%clk 0:02:57]}  e6 {[%clk 0:02:52]} 5. f3 {[%clk 0:02:56]}  Bd6 {[%clk 0:02:49]} 6. Nge2 {[%clk 0:02:54]}  Nc6 {[%clk 0:02:44]} 7. g4 {[%clk 0:02:53]}  Bg6 {[%clk 0:02:41]} 8. h4 {[%clk 0:02:51]}  h5 {[%clk 0:02:36]} 9. g5 {[%clk 0:02:50]}  Ng8 {[%clk 0:02:31]} 10. Bxd6 {[%clk 0:02:50]}  cxd6 {[%clk 0:02:18]} 11. Nf4 {[%clk 0:02:47]}  Bf5 {[%clk 0:01:59]} 12. e4 {[%clk 0:02:32]}  dxe4 {[%clk 0:01:58]} 13. fxe4 {[%clk 0:02:33]}  Bg4 {[%clk 0:01:58]} 14. Be2 {[%clk 0:02:22]}  Bxe2 {[%clk 0:01:52]} 15. Ncxe2 {[%clk 0:02:19]}  Qa5+ {[%clk 0:01:44]} 16. c3 {[%clk 0:02:14]}  g6 {[%clk 0:01:37]} 17. O-O {[%clk 0:02:07]}  Nge7 {[%clk 0:01:32]} 18. Ng3 {[%clk 0:02:06]}  O-O-O {[%clk 0:01:22]} 19. a4 {[%clk 0:01:42]}  e5 {[%clk 0:00:50]} 20. b4 {[%clk 0:01:35]}  Qb6 {[%clk 0:00:45]} 21. Nd5 {[%clk 0:01:31]}  Nxd5 {[%clk 0:00:39]} 22. exd5 {[%clk 0:01:32]}  Ne7 {[%clk 0:00:38]} 23. Rxf7 {[%clk 0:01:21]}  Nxd5 {[%clk 0:00:35]} 24. Qf3 {[%clk 0:01:10]}  Nf4 {[%clk 0:00:31]} 25. a5 {[%clk 0:01:05]}  Qa6 {[%clk 0:00:17]} 26. b5 {[%clk 0:01:00]}  Qxb5 {[%clk 0:00:12]} 27. a6 {[%clk 0:01:00]}  Rd7 {[%clk 0:00:12]} 28. c4 {[%clk 0:00:52]}  Qb6 {[%clk 0:00:05]} 29. axb7+ {[%clk 0:00:45]}  Qxb7 {[%clk 0:00:05]} 30. Qxb7+ {[%clk 0:00:44]}  Rxb7 {[%clk 0:00:06]} 31. Rxa7 {[%clk 0:00:44]}  Rxf7 {[%clk 0:00:05]} 32. Rxf7 {[%clk 0:00:43]}  exd4 {[%clk 0:00:03]} 33. Rxf4 {[%clk 0:00:43]} 1-0


[Site "https://www.chess.com"]

[Event "Titled Tuesday Blitz October 18 Late 2022"]
[White "Timmermans, Mark"]
[Black "Galaktionov, Artem"]
[WhiteFideId "1026399"]
[BlackFideId "24175471"]
[WhiteElo "2460"]
[BlackElo "2278"]
[Result "1/2-1/2"]
[Round "11"]
[TimeControl "180+1"]
[Date "2022.10.18"]
[WhiteClock "0:00:48"]
[BlackClock "0:00:30"]

1. b4 {[%clk 0:03:00]}  c6 {[%clk 0:03:00]} 2. Bb2 {[%clk 0:03:00]}  d6 {[%clk 0:03:01]} 3. c4 {[%clk 0:02:58]}  Nf6 {[%clk 0:03:01]} 4. a4 {[%clk 0:02:57]}  a5 {[%clk 0:03:00]} 5. b5 {[%clk 0:02:57]}  g6 {[%clk 0:03:01]} 6. e3 {[%clk 0:02:58]}  Bg7 {[%clk 0:03:01]} 7. Nf3 {[%clk 0:02:58]}  O-O {[%clk 0:03:01]} 8. Be2 {[%clk 0:02:58]}  Re8 {[%clk 0:03:00]} 9. d4 {[%clk 0:02:58]}  Bf5 {[%clk 0:03:00]} 10. O-O {[%clk 0:02:57]}  Nbd7 {[%clk 0:02:59]} 11. Nc3 {[%clk 0:02:58]}  e5 {[%clk 0:02:59]} 12. Rc1 {[%clk 0:02:56]}  h5 {[%clk 0:02:51]} 13. Qb3 {[%clk 0:02:55]}  Qc7 {[%clk 0:02:50]} 14. Rfd1 {[%clk 0:02:54]}  e4 {[%clk 0:02:50]} 15. Nd2 {[%clk 0:02:53]}  h4 {[%clk 0:02:44]} 16. Ba3 {[%clk 0:02:49]}  g5 {[%clk 0:02:40]} 17. b6 {[%clk 0:02:25]}  Nxb6 {[%clk 0:02:23]} 18. Bxd6 {[%clk 0:02:24]}  Qxd6 {[%clk 0:02:22]} 19. Qxb6 {[%clk 0:02:24]}  Qb4 {[%clk 0:02:19]} 20. c5 {[%clk 0:02:01]}  Qxb6 {[%clk 0:02:18]} 21. cxb6 {[%clk 0:02:02]}  Bf8 {[%clk 0:02:19]} 22. Nc4 {[%clk 0:01:59]}  Bb4 {[%clk 0:02:18]} 23. Na2 {[%clk 0:01:55]}  Be7 {[%clk 0:02:16]} 24. Nc3 {[%clk 0:01:51]}  Red8 {[%clk 0:02:13]} 25. Ne5 {[%clk 0:01:51]}  Be6 {[%clk 0:02:07]} 26. f3 {[%clk 0:01:43]}  exf3 {[%clk 0:02:06]} 27. gxf3 {[%clk 0:01:44]}  Rac8 {[%clk 0:01:58]} 28. Ne4 {[%clk 0:01:42]}  Nxe4 {[%clk 0:01:55]} 29. fxe4 {[%clk 0:01:43]}  f6 {[%clk 0:01:48]} 30. Bc4 {[%clk 0:01:42]}  Bxc4 {[%clk 0:01:46]} 31. Nxc4 {[%clk 0:01:43]}  Bb4 {[%clk 0:01:46]} 32. Kf2 {[%clk 0:01:37]}  Re8 {[%clk 0:01:38]} 33. Rb1 {[%clk 0:01:26]}  Rxe4 {[%clk 0:01:35]} 34. Rxb4 {[%clk 0:01:26]}  axb4 {[%clk 0:01:36]} 35. Nd6 {[%clk 0:01:27]}  Ree8 {[%clk 0:01:30]} 36. Nxc8 {[%clk 0:01:26]}  Rxc8 {[%clk 0:01:31]} 37. Rb1 {[%clk 0:01:27]}  Kf7 {[%clk 0:01:28]} 38. Rxb4 {[%clk 0:01:26]}  f5 {[%clk 0:01:28]} 39. a5 {[%clk 0:01:20]}  Ra8 {[%clk 0:01:28]} 40. Ra4 {[%clk 0:01:18]}  Ke6 {[%clk 0:01:28]} 41. a6 {[%clk 0:01:15]}  bxa6 {[%clk 0:01:28]} 42. b7 {[%clk 0:01:15]}  Rb8 {[%clk 0:01:28]} 43. Rxa6 {[%clk 0:01:16]}  Rxb7 {[%clk 0:01:06]} 44. Rxc6+ {[%clk 0:01:16]}  Kf7 {[%clk 0:01:06]} 45. Rc5 {[%clk 0:01:16]}  Rb2+ {[%clk 0:01:05]} 46. Kg1 {[%clk 0:01:15]}  Ke6 {[%clk 0:01:04]} 47. e4 {[%clk 0:00:51]}  Rb1+ {[%clk 0:00:45]} 48. Kg2 {[%clk 0:00:49]}  Rb2+ {[%clk 0:00:44]} 49. Kg1 {[%clk 0:00:49]}  Rb1+ {[%clk 0:00:31]} 50. Kg2 {[%clk 0:00:49]}  Rb2+ {[%clk 0:00:30]} 51. Kg1 {[%clk 0:00:48]} 1/2-1/2


[Site "https://www.chess.com"]

[Event "Titled Tuesday Blitz October 18 Late 2022"]
[White "Vlassov, Nikolai"]
[Black "Poliakova, Varvara"]
[WhiteFideId "4103360"]
[BlackFideId "13518313"]
[WhiteElo "2324"]
[BlackElo "1938"]
[Result "1-0"]
[Round "11"]
[TimeControl "180+1"]
[Date "2022.10.18"]
[WhiteClock "0:00:08"]
[BlackClock "0:00:08"]

1. e4 {[%clk 0:03:00]}  e5 {[%clk 0:02:54]} 2. Bc4 {[%clk 0:02:57]}  Nf6 {[%clk 0:02:53]} 3. d3 {[%clk 0:02:57]}  d5 {[%clk 0:02:51]} 4. exd5 {[%clk 0:02:57]}  Nxd5 {[%clk 0:02:52]} 5. Nf3 {[%clk 0:02:56]}  Nc6 {[%clk 0:02:50]} 6. O-O {[%clk 0:02:56]}  Be7 {[%clk 0:02:46]} 7. Re1 {[%clk 0:02:55]}  O-O {[%clk 0:02:44]} 8. Nxe5 {[%clk 0:02:54]}  Nxe5 {[%clk 0:02:32]} 9. Rxe5 {[%clk 0:02:54]}  c6 {[%clk 0:02:29]} 10. Re1 {[%clk 0:02:44]}  Bd6 {[%clk 0:02:21]} 11. Nc3 {[%clk 0:02:38]}  Nxc3 {[%clk 0:02:19]} 12. bxc3 {[%clk 0:02:38]}  Qh4 {[%clk 0:02:14]} 13. g3 {[%clk 0:02:36]}  Qh3 {[%clk 0:02:14]} 14. Qf3 {[%clk 0:02:36]}  Bg4 {[%clk 0:02:12]} 15. Qg2 {[%clk 0:02:35]}  Qh5 {[%clk 0:02:12]} 16. d4 {[%clk 0:02:14]}  Bf3 {[%clk 0:02:10]} 17. Qf1 {[%clk 0:02:13]}  Rfe8 {[%clk 0:02:08]} 18. Be3 {[%clk 0:02:07]}  b5 {[%clk 0:01:54]} 19. Be2 {[%clk 0:02:04]}  b4 {[%clk 0:01:44]} 20. Bxf3 {[%clk 0:02:00]}  Qxf3 {[%clk 0:01:45]} 21. c4 {[%clk 0:01:55]}  c5 {[%clk 0:01:37]} 22. dxc5 {[%clk 0:01:48]}  Be5 {[%clk 0:01:36]} 23. Rab1 {[%clk 0:01:44]}  Bc3 {[%clk 0:01:36]} 24. Red1 {[%clk 0:01:43]}  h5 {[%clk 0:01:21]} 25. Rd3 {[%clk 0:01:42]}  h4 {[%clk 0:01:18]} 26. Bd4 {[%clk 0:01:28]}  Qf5 {[%clk 0:01:15]} 27. Bxc3 {[%clk 0:01:25]}  bxc3 {[%clk 0:01:15]} 28. Rxc3 {[%clk 0:01:21]}  Qxc5 {[%clk 0:01:13]} 29. gxh4 {[%clk 0:01:07]}  Qd4 {[%clk 0:01:10]} 30. Rg3 {[%clk 0:00:59]}  Rac8 {[%clk 0:01:07]} 31. h3 {[%clk 0:00:24]}  Rxc4 {[%clk 0:01:00]} 32. Rg4 {[%clk 0:00:20]}  Re4 {[%clk 0:00:45]} 33. Rb8+ {[%clk 0:00:17]}  Kh7 {[%clk 0:00:44]} 34. Rxe4 {[%clk 0:00:17]}  Qxe4 {[%clk 0:00:43]} 35. Qd3 {[%clk 0:00:17]}  Qxd3 {[%clk 0:00:40]} 36. cxd3 {[%clk 0:00:18]}  Ra4 {[%clk 0:00:39]} 37. Rb2 {[%clk 0:00:14]}  Kg6 {[%clk 0:00:37]} 38. Kg2 {[%clk 0:00:14]}  Rxh4 {[%clk 0:00:37]} 39. Rd2 {[%clk 0:00:11]}  Ra4 {[%clk 0:00:37]} 40. d4 {[%clk 0:00:11]}  Kf6 {[%clk 0:00:34]} 41. Kf3 {[%clk 0:00:10]}  Ke6 {[%clk 0:00:35]} 42. Ke4 {[%clk 0:00:10]}  g6 {[%clk 0:00:29]} 43. h4 {[%clk 0:00:07]}  Ra5 {[%clk 0:00:28]} 44. Kf4 {[%clk 0:00:07]}  Rf5+ {[%clk 0:00:26]} 45. Kg4 {[%clk 0:00:07]}  Kd5 {[%clk 0:00:23]} 46. f3 {[%clk 0:00:08]}  a6 {[%clk 0:00:22]} 47. Rd1 {[%clk 0:00:07]}  Rf6 {[%clk 0:00:20]} 48. Rd2 {[%clk 0:00:06]}  Rb6 {[%clk 0:00:20]} 49. h5 {[%clk 0:00:06]}  gxh5+ {[%clk 0:00:20]} 50. Kxh5 {[%clk 0:00:07]}  Rf6 {[%clk 0:00:20]} 51. Kg4 {[%clk 0:00:07]}  Rb6 {[%clk 0:00:20]} 52. Kf5 {[%clk 0:00:07]}  Rb4 {[%clk 0:00:19]} 53. f4 {[%clk 0:00:07]}  a5 {[%clk 0:00:15]} 54. Kf6 {[%clk 0:00:07]}  Rb7 {[%clk 0:00:15]} 55. f5 {[%clk 0:00:07]}  a4 {[%clk 0:00:16]} 56. a3 {[%clk 0:00:07]}  Rc7 {[%clk 0:00:12]} 57. Kg7 {[%clk 0:00:07]}  Ke4 {[%clk 0:00:12]} 58. f6 {[%clk 0:00:07]}  Kd5 {[%clk 0:00:12]} 59. Rd1 {[%clk 0:00:08]}  Rb7 {[%clk 0:00:12]} 60. Kf8 {[%clk 0:00:08]}  Ra7 {[%clk 0:00:11]} 61. Ke8 {[%clk 0:00:08]}  Ke6 {[%clk 0:00:11]} 62. d5+ {[%clk 0:00:07]}  Kxf6 {[%clk 0:00:11]} 63. d6 {[%clk 0:00:07]}  Ra8+ {[%clk 0:00:10]} 64. Kd7 {[%clk 0:00:07]}  Ke5 {[%clk 0:00:07]} 65. Ke7 {[%clk 0:00:06]}  f5 {[%clk 0:00:03]} 66. d7 {[%clk 0:00:07]}  f4 {[%clk 0:00:03]} 67. d8=Q {[%clk 0:00:07]}  Rxd8 {[%clk 0:00:04]} 68. Kxd8 {[%clk 0:00:07]}  f3 {[%clk 0:00:05]} 69. Kc7 {[%clk 0:00:08]}  Ke4 {[%clk 0:00:04]} 70. Kb6 {[%clk 0:00:08]}  Ke3 {[%clk 0:00:05]} 71. Kb5 {[%clk 0:00:08]}  Ke2 {[%clk 0:00:06]} 72. Ra1 {[%clk 0:00:07]}  f2 {[%clk 0:00:07]} 73. Kxa4 {[%clk 0:00:08]}  f1=Q {[%clk 0:00:07]} 74. Rxf1 {[%clk 0:00:08]}  Kxf1 {[%clk 0:00:08]} 75. Kb5 {[%clk 0:00:08]} 1-0


[Site "https://www.chess.com"]

[Event "Titled Tuesday Blitz October 18 Late 2022"]
[White "Winkels, Marcel"]
[Black "Sabar, Ethmane Daouda"]
[WhiteFideId "1003887"]
[BlackFideId "19600097"]
[WhiteElo "1900"]
[BlackElo "1950"]
[Result "1-0"]
[Round "11"]
[TimeControl "180+1"]
[Date "2022.10.19"]
[WhiteClock "0:00:12"]
[BlackClock "0:00:03"]

1. e4 {[%clk 0:03:00]}  c5 {[%clk 0:02:57]} 2. Nf3 {[%clk 0:02:59]}  Nc6 {[%clk 0:02:58]} 3. Bb5 {[%clk 0:02:58]}  g6 {[%clk 0:02:54]} 4. O-O {[%clk 0:02:56]}  Bg7 {[%clk 0:02:48]} 5. Re1 {[%clk 0:02:54]}  e5 {[%clk 0:02:42]} 6. Bxc6 {[%clk 0:02:53]}  bxc6 {[%clk 0:02:41]} 7. d3 {[%clk 0:02:51]}  Ne7 {[%clk 0:02:41]} 8. Be3 {[%clk 0:02:48]}  d6 {[%clk 0:02:40]} 9. Qd2 {[%clk 0:02:48]}  h6 {[%clk 0:02:38]} 10. Nc3 {[%clk 0:02:46]}  Bg4 {[%clk 0:02:37]} 11. a3 {[%clk 0:02:28]}  Bxf3 {[%clk 0:02:27]} 12. gxf3 {[%clk 0:02:27]}  Qd7 {[%clk 0:02:27]} 13. Kg2 {[%clk 0:02:21]}  h5 {[%clk 0:02:23]} 14. b4 {[%clk 0:02:17]}  cxb4 {[%clk 0:02:19]} 15. axb4 {[%clk 0:02:17]}  f6 {[%clk 0:02:13]} 16. Reb1 {[%clk 0:02:08]}  g5 {[%clk 0:02:05]} 17. b5 {[%clk 0:02:01]}  Ng6 {[%clk 0:02:02]} 18. Qe2 {[%clk 0:01:47]}  Nh4+ {[%clk 0:02:00]} 19. Kh1 {[%clk 0:01:45]}  Qh3 {[%clk 0:02:00]} 20. Rg1 {[%clk 0:01:39]}  Nxf3 {[%clk 0:01:46]} 21. Rg2 {[%clk 0:01:36]}  Nh4 {[%clk 0:01:21]} 22. Rg3 {[%clk 0:01:31]}  Qd7 {[%clk 0:01:19]} 23. bxc6 {[%clk 0:01:29]}  Qxc6 {[%clk 0:01:20]} 24. Nd5 {[%clk 0:01:29]}  Kf7 {[%clk 0:01:14]} 25. Rxa7+ {[%clk 0:01:20]}  Rxa7 {[%clk 0:01:12]} 26. Bxa7 {[%clk 0:01:20]}  Ra8 {[%clk 0:01:10]} 27. Qxh5+ {[%clk 0:01:18]}  Kf8 {[%clk 0:01:01]} 28. Be3 {[%clk 0:01:03]}  Ra1+ {[%clk 0:00:59]} 29. Rg1 {[%clk 0:01:02]}  Rxg1+ {[%clk 0:00:59]} 30. Kxg1 {[%clk 0:01:01]}  Qxc2 {[%clk 0:00:59]} 31. h3 {[%clk 0:00:50]}  Qxd3 {[%clk 0:00:56]} 32. Qg4 {[%clk 0:00:42]}  Qb1+ {[%clk 0:00:47]} 33. Kh2 {[%clk 0:00:41]}  Qf1 {[%clk 0:00:24]} 34. Nc7 {[%clk 0:00:32]}  Kf7 {[%clk 0:00:25]} 35. Qe6+ {[%clk 0:00:30]}  Kg6 {[%clk 0:00:23]} 36. Qg4 {[%clk 0:00:28]}  Qc4 {[%clk 0:00:12]} 37. Ne6 {[%clk 0:00:26]}  f5 {[%clk 0:00:08]} 38. Qxg5+ {[%clk 0:00:25]}  Kf7 {[%clk 0:00:07]} 39. Nxg7 {[%clk 0:00:22]}  Qxe4 {[%clk 0:00:06]} 40. Qxh4 {[%clk 0:00:21]}  Kxg7 {[%clk 0:00:05]} 41. Qxe4 {[%clk 0:00:20]}  fxe4 {[%clk 0:00:05]} 42. Bb6 {[%clk 0:00:19]}  d5 {[%clk 0:00:04]} 43. Bd8 {[%clk 0:00:17]}  Kg6 {[%clk 0:00:04]} 44. Kg2 {[%clk 0:00:16]}  Kf5 {[%clk 0:00:03]} 45. Kf1 {[%clk 0:00:17]}  d4 {[%clk 0:00:04]} 46. Ke2 {[%clk 0:00:16]}  Kf4 {[%clk 0:00:05]} 47. h4 {[%clk 0:00:16]}  d3+ {[%clk 0:00:02]} 48. Kd2 {[%clk 0:00:15]}  Kf3 {[%clk 0:00:02]} 49. Bb6 {[%clk 0:00:13]}  Kg4 {[%clk 0:00:03]} 50. Bd8 {[%clk 0:00:12]}  Kf3 {[%clk 0:00:03]} 51. Bg5 {[%clk 0:00:12]} 1-0


[Site "https://www.chess.com"]

[Event "Titled Tuesday Blitz October 18 Late 2022"]
[White "Yurtseven, Melih"]
[Black "Gubajdullin, Alexei"]
[WhiteFideId "6312160"]
[BlackFideId "4141202"]
[WhiteElo "2218"]
[BlackElo "2200"]
[Result "0-1"]
[Round "11"]
[TimeControl "180+1"]
[Date "2022.10.19"]
[WhiteClock "0:00:03"]
[BlackClock "0:00:20"]

1. b4 {[%clk 0:02:44]}  Nf6 {[%clk 0:02:59]} 2. Bb2 {[%clk 0:02:44]}  g6 {[%clk 0:02:58]} 3. c4 {[%clk 0:02:42]}  Bg7 {[%clk 0:02:58]} 4. g3 {[%clk 0:02:41]}  O-O {[%clk 0:02:58]} 5. Bg2 {[%clk 0:02:42]}  d6 {[%clk 0:02:58]} 6. Nf3 {[%clk 0:02:38]}  e5 {[%clk 0:02:55]} 7. O-O {[%clk 0:02:39]}  Nc6 {[%clk 0:02:55]} 8. b5 {[%clk 0:02:39]}  Ne7 {[%clk 0:02:55]} 9. d3 {[%clk 0:02:27]}  Bg4 {[%clk 0:02:50]} 10. c5 {[%clk 0:02:16]}  Qd7 {[%clk 0:02:48]} 11. cxd6 {[%clk 0:02:14]}  cxd6 {[%clk 0:02:47]} 12. Ba3 {[%clk 0:02:00]}  Rfd8 {[%clk 0:02:42]} 13. Re1 {[%clk 0:01:53]}  Bh3 {[%clk 0:02:39]} 14. Bh1 {[%clk 0:01:35]}  Qxb5 {[%clk 0:02:37]} 15. Nc3 {[%clk 0:01:34]}  Qa5 {[%clk 0:02:37]} 16. Qb3 {[%clk 0:01:30]}  Be6 {[%clk 0:02:35]} 17. Qb2 {[%clk 0:01:29]}  e4 {[%clk 0:02:32]} 18. Nd4 {[%clk 0:01:18]}  Ng4 {[%clk 0:02:24]} 19. Nxe4 {[%clk 0:01:04]}  Bxd4 {[%clk 0:02:21]} 20. Qxd4 {[%clk 0:01:01]}  Qxa3 {[%clk 0:02:21]} 21. h3 {[%clk 0:01:01]}  d5 {[%clk 0:02:18]} 22. Ng5 {[%clk 0:00:47]}  Nh6 {[%clk 0:02:02]} 23. Nxe6 {[%clk 0:00:39]}  fxe6 {[%clk 0:02:01]} 24. Qe3 {[%clk 0:00:40]}  Nf7 {[%clk 0:01:55]} 25. Qxe6 {[%clk 0:00:39]}  Qd6 {[%clk 0:01:53]} 26. Qg4 {[%clk 0:00:33]}  Rac8 {[%clk 0:01:50]} 27. Rab1 {[%clk 0:00:32]}  b6 {[%clk 0:01:49]} 28. a4 {[%clk 0:00:27]}  Rc2 {[%clk 0:01:47]} 29. a5 {[%clk 0:00:26]}  bxa5 {[%clk 0:01:47]} 30. Qa4 {[%clk 0:00:26]}  Rdc8 {[%clk 0:01:38]} 31. Qxa5 {[%clk 0:00:23]}  Qc5 {[%clk 0:01:38]} 32. Qa6 {[%clk 0:00:20]}  Rf8 {[%clk 0:01:37]} 33. Qe6 {[%clk 0:00:20]}  Kg7 {[%clk 0:01:33]} 34. Rb7 {[%clk 0:00:19]}  Re8 {[%clk 0:00:47]} 35. Bf3 {[%clk 0:00:18]}  Qd6 {[%clk 0:00:42]} 36. Qe3 {[%clk 0:00:14]}  d4 {[%clk 0:00:40]} 37. Qe4 {[%clk 0:00:12]}  Ng5 {[%clk 0:00:39]} 38. Qg4 {[%clk 0:00:10]}  Nxf3+ {[%clk 0:00:36]} 39. Qxf3 {[%clk 0:00:11]}  Rc7 {[%clk 0:00:34]} 40. Reb1 {[%clk 0:00:10]}  Rf8 {[%clk 0:00:34]} 41. Qe4 {[%clk 0:00:10]}  Rf7 {[%clk 0:00:31]} 42. f4 {[%clk 0:00:10]}  Nf5 {[%clk 0:00:28]} 43. g4 {[%clk 0:00:07]}  Ne3 {[%clk 0:00:26]} 44. Rxc7 {[%clk 0:00:05]}  Rxc7 {[%clk 0:00:25]} 45. Rb8 {[%clk 0:00:04]}  Rf7 {[%clk 0:00:23]} 46. Qe8 {[%clk 0:00:03]}  Qxf4 {[%clk 0:00:20]} 47. Qh8+ {[%clk 0:00:03]}  Kh6 {[%clk 0:00:20]} 48. g5+ {[%clk 0:00:03]}  Qxg5+ {[%clk 0:00:20]} 0-1


[Site "https://www.chess.com"]